Cogmind - Beta 11 @@@ ROGUE MODE // 2022.03.31 @ 19:01:41 Player: Warus Result: Destroyed by S-10 Pest with Light Assault Rifle Performance ------------- Evolutions (1) 500 Regions Visited (2) 400 Robots Destroyed (27) 135 Value Destroyed (620) 620 Prototype IDs (3) 60 Alien Tech Used (0) 0 Bonus (0) 0 TOTAL SCORE: 1715 Bonus ------- None Cogmind --------- Core Integrity 0/400 Matter 298/300 Energy 99/100 System Corruption 2% Temperature Cool (0) Movement Core (50) Location -9/Materials Parts ------- > --- POWER (1) -------- (None) > --- PROPULSION (2) --- (None) > --- UTILITY (3) ------ Improved Targeting Computer > --- WEAPON (3) ------- (None) > --- INVENTORY (5) ---- Field Recycling Unit (0) Mini Grenade Launcher Peak State ------------ > --- POWER ------------ Light Ion Engine > --- PROPULSION ------- Improved Flight Unit Improved Flight Unit > --- UTILITY ---------- Medium Battery Improved Targeting Computer Light Armor Plating > --- WEAPON ----------- Small Laser Small Laser Light Assault Rifle > --- INVENTORY -------- Aluminum Leg Aluminum Leg Field Recycling Unit Mini Grenade Launcher [Rating: 14] Favorites ----------- Power Light Ion Engine Engine Light Ion Engine Propulsion Aluminum Leg Leg Aluminum Leg Wheel Wheel Hover Unit Hover Unit Flight Unit Improved Flight Unit Utility Small Matter Pod Device Seismic Detector Storage Small Matter Pod Processor Improved Targeting Computer Protection Light Armor Plating Weapon Small Laser Energy Gun Small Laser Ballistic Gun Light Assault Rifle Launcher Mini Grenade Launcher Build | -11 -10 -9 ------- Run | Scr Mat Mat Slots Evolved 2 | . . 2 Power . | . . . Propulsion . | . . . Utility 1 | . . 1 Weapon 1 | . . 1 Parts Attached 32 | 11 10 11 Power 2 | 1 1 . Engine 2 | 1 1 . Core . | . . . Reactor . | . . . Propulsion 11 | 4 4 3 Treads . | . . . Leg 5 | 2 2 1 Wheel 2 | 2 . . Hover 2 | . 2 . Flight 2 | . . 2 Utility 9 | 2 2 5 Device 4 | 1 1 2 Storage 3 | 1 1 1 Processor 1 | . . 1 Hackware . | . . . Protection 1 | . . 1 Artifact . | . . . Weapon 10 | 4 3 3 Energy Gun 8 | 4 3 1 Energy Cannon . | . . . Ballistic Gun 1 | . . 1 Ballistic Cannon . | . . . Launcher 1 | . . 1 Special Weapon . | . . . Impact Weapon . | . . . Slashing Weapon . | . . . Piercing Weapon . | . . . Special Melee Weapon . | . . . Unidentified Prototypes 1 | . . 1 Parts Lost 9 | . 3 6 Power 2 | . 1 1 Propulsion 2 | . 2 . Utility 3 | . . 3 Weapon 2 | . . 2 Highest Loss Streak 4 | . 3 4 To Critical Strikes . | . . . Average Slot Usage (%) 92 | . 95 89 Engine 10 | . 11 8 Leg 17 | . 19 14 Hover 3 | . 7 . Flight 2 | . . 5 Device 10 | . 14 6 Storage 12 | . 14 9 Processor 3 | . . 8 Protection 2 | . . 4 Energy Gun 24 | . 28 20 Ballistic Gun 1 | . . 3 Launcher 2 | . . 5 Naked Turns . | . . . Heaviest Build 11 | 8 10 11 Greatest Support 20 | 20 20 20 Greatest Overweight (x) 2 | . 1 2 Average Overweight (x) . | . . . Largest Inventory Capacity 5 | 5 5 5 Average Capacity 5 | 5 5 5 Most Carried 5 | 5 5 5 Average Carried 3 | 2 3 3 Final Capacity 5 | 5 5 5 Final Carried 5 | 5 5 2 Class Distribution -------------------- 43% | Scavenger-Mutant 30% | Mutant 12% | Gunner 9% | Scavenger-Skirmisher 4% | Scavenger-Gunner Dominant Class ---------------- Scavenger-Mutant | -10/Materials Gunner | -9/Materials Resources | -11 -10 -9 ----------- Run | Scr Mat Mat Matter Collected 655 | 360 245 50 Remotely . | . . . Salvage Created 818 | 134 282 402 Parts 55 | 11 17 27 Haulers Intercepted 1 | . . 1 Recyclers Shooed . | . . . Parts Field Recycled . | . . . Retrieved Matter . | . . . Parts Self-Destructed . | . . . Prevented . | . . . Kills | -11 -10 -9 ------- Run | Scr Mat Mat Combat Hostiles Destroyed 17 | 1 4 12 Guns 13 | 1 4 8 AOE 4 | . . 4 Classes Destroyed 9 | 3 1 5 Worker 3 | 1 2 . Builder 1 | . . 1 Tunneler 4 | 3 1 . Hauler 1 | . . 1 Operator 1 | . 1 . Swarmer 3 | . . 3 Grunt 12 | 1 4 7 Duelist 1 | . . 1 Sentry 1 | . . 1 Best Kill Streak 9 | 4 3 9 Combat Bots Only 7 | 1 2 7 Max Kills in Single Turn 3 | 1 1 3 Gunslinging . | . . . Exploded 2 | . . 2 Melee . | . . . Uniques/NPCs Destroyed . | . . . Combat | -11 -10 -9 -------- Run | Scr Mat Mat Damage Taken 1092 | 22 238 832 Core 453 | . 53 400 Absorbed by Shields . | . . . Core Remaining (%) 89 | 100 78 . Volleys Fired 64 | 8 33 23 Largest 3 | 2 2 3 Hottest 110 | 80 105 110 Shots Fired 131 | 16 60 55 Gun 127 | 16 60 51 Cannon . | . . . Launcher 4 | . . 4 Special . | . . . Kinetic 5 | . . 5 Thermal 101 | 8 47 46 Explosive 4 | . . 4 Electromagnetic 21 | 8 13 . Robot Hit Streak 12 | 4 12 10 Robot Miss Streak 6 | 3 6 3 Penetration Max . | . . . Secondary Targets 1 | . . 1 Max Gunslinging Chain 1 | . . 1 Shots Hit Robots 74 | 8 30 36 Core Hits 47 | 6 13 28 Critical Kills . | . . . Critical Parts Destroyed . | . . . Critical Strikes . | . . . Melee Attacks . | . . . Impact . | . . . Slashing . | . . . Piercing . | . . . Sneak Attacks . | . . . Combat Hostiles . | . . . Follow-up Attacks . | . . . Damage Inflicted 1401 | 113 407 881 Guns 916 | 113 407 396 Cannons . | . . . Explosions 481 | . . 481 Melee . | . . . Ramming 4 | . . 4 Kinetic 26 | . . 26 Thermal 708 | 55 283 370 Explosive 481 | . . 481 Electromagnetic 182 | 58 124 . Impact . | . . . Slashing . | . . . Piercing . | . . . Highest Corruption 2 | . 1 2 Average Corruption 1 | . 1 2 Corruption Purged . | . . . Corruption Blocked . | . . . Effects 7 | . 2 5 Message Errors 2 | . 1 1 Matter Fused 2 | . 1 1 Heat Flow Errors 3 | . . 3 Overload Shots . | . . . Overflow Damage 3 | . . 3 Projectiles . | . . . Explosions 3 | . . 3 Melee . | . . . Knockbacks . | . . . Impact . | . . . Kinetic . | . . . Secondary . | . . . Self-Inflicted Damage 2 | . . 2 Shots . | . . . Rammed 1 | . . 1 Targets Rammed 1 | . . 1 Kicked . | . . . Crushed . | . . . Highest Temperature 550 | 120 550 293 Average Temperature 147 | 58 183 131 Received Heat Transfer 420 | 12 132 276 Effects 16 | . 14 2 Shutdowns 2 | . 2 . Interference 3 | . 1 2 Matter Decay 3 | . 3 . Short Circuit 2 | . 2 . Damage (minor) 1 | . 1 . Damage (major) 5 | . 5 . Siege Activations . | . . . Robots Corrupted . | . . . Combat Hostiles . | . . . Parts Fried 3 | . 3 . Impact Corruptions . | . . . Robots Melted . | . . . Combat Hostiles . | . . . Parts Melted . | . . . Heat Transferred 1633 | 125 683 825 Parts Sabotaged . | . . . Parts Stolen . | . . . Parts Stripped . | . . . Power Chain Reactions . | . . . Missiles Intercepted . | . . . Alert | -11 -10 -9 ------- Run | Scr Mat Mat Peak Influence 395 | 40 154 395 Initial 26 | . 26 . Average 128 | 16 94 224 Maximum Alert Level 1 | . . 1 Low Security (%) 76 | 100 100 35 Level 1 23 | . . 64 Level 2 . | . . . Level 3 . | . . . Level 4 . | . . . Level 5 . | . . . High Security . | . . . Max Security . | . . . Squads Dispatched 4 | . 1 3 Investigation 2 | . . 2 Extermination . | . . . Reinforcement 2 | . 1 1 Assault . | . . . Garrison . | . . . Intercept . | . . . Searches Triggered . | . . . Construction Impeded . | . . . Haulers Reinforced . | . . . Active Scanning Responses . | . . . Cargo Convoy Interrupts . | . . . Stealth | -11 -10 -9 --------- Run | Scr Mat Mat Distress Signals . | . . . Communications Jammed . | . . . Distress Signals . | . . . Times Spotted 31 | 1 7 23 Peak Tracking Total 8 | 1 2 8 Tactical Retreats 1 | . . 1 Traps | -11 -10 -9 ------- Run | Scr Mat Mat Traps Triggered 3 | . . 3 Indirectly . | . . . Trap Hack Attempts . | . . . Triggered . | . . . Disarmed . | . . . Reprogrammed . | . . . Reused . | . . . Traps Extracted . | . . . Installed . | . . . Triggered . | . . . Machines | -11 -10 -9 ---------- Run | Scr Mat Mat Machines Disabled 1 | . 1 . Max in Single Turn 1 | . 1 . Machines Sabotaged . | . . . Garrisons Compromised . | . . . Overloaded Fab Kills . | . . . Hacking | -11 -10 -9 --------- Run | Scr Mat Mat Machines Accessed 2 | . 1 1 Terminals 1 | . 1 . Fabricators . | . . . Repair Stations 1 | . . 1 Recycling Units . | . . . Scanalyzers . | . . . Garrison Access . | . . . Total Hacks 6 | . 3 3 Successful 3 | . 2 1 Failed 3 | . 1 2 Catastrophic . | . . . Database Lockouts . | . . . Manual . | . . . Terminals 3 | . 3 . Fabricators . | . . . Repair Stations 3 | . . 3 Recycling Units . | . . . Scanalyzers . | . . . Garrison Access . | . . . Terminal Hacks 2 | . 2 . Prototype ID Bank 1 | . 1 . Alert Level 1 | . 1 . Fabricator Hacks . | . . . Repair Station Hacks 1 | . . 1 Scan Component 1 | . . 1 Recycling Unit Hacks . | . . . Scanalyzer . | . . . Garrison Access Hacks . | . . . Unauthorized Hacks . | . . . Terminals . | . . . Fabricators . | . . . Repair Stations . | . . . Recycling Units . | . . . Scanalyzers . | . . . Garrison Access . | . . . Data Cores Recovered . | . . . Used . | . . . Hacking Detections 2 | . 1 1 Full Trace Events 2 | . 1 1 Feedback Events 1 | . 1 . Corruption 1 | . 1 . Feedback Blocked . | . . . Robot Schematics Acquired . | . . . Robots Built . | . . . Authchips . | . . . Time . | . . . Total Robot Build Rating . | . . . Part Schematics Acquired . | . . . Parts Built . | . . . Authchips . | . . . Time . | . . . Total Part Build Rating . | . . . Parts Repaired . | . . . Time . | . . . Parts Recycled . | . . . Recycled Matter . | . . . Retrieved Matter . | . . . Retrieved Components . | . . . Parts Scanalyzed . | . . . Part Schematics Acquired . | . . . Parts Damaged . | . . . Bothacking | -11 -10 -9 ------------ Run | Scr Mat Mat Used RIF Installer . | . . . Robots Hacked . | . . . Non-combat . | . . . Combat . | . . . Robot Hacks Applied . | . . . Relay Couplers Released . | . . . Fabnet Peak Effective % . | . . . Robots Rewired . | . . . Allies Hacked . | . . . Hacks Repelled . | . . . Allies | -11 -10 -9 -------- Run | Scr Mat Mat Total Allies . | . . . Largest Group . | . . . Highest-Rated Group . | . . . Highest-Rated Ally . | . . . Total Orders . | . . . Ally Attacks . | . . . Total Damage . | . . . Kills . | . . . Allies Corrupted . | . . . Allies Melted . | . . . Intel | -11 -10 -9 ------- Run | Scr Mat Mat Robot Analysis Total . | . . . Derelict Logs Recovered . | . . . Drone Launches . | . . . Drone Recoveries . | . . . Exploration | -11 -10 -9 ------------- Run | Scr Mat Mat Turns Passed 999 | 172 466 361 Spaces Moved 746 | 118 334 294 Core 93 | 27 17 49 Treads . | . . . Legs 456 | 91 233 132 Wheels . | . . . Hover 84 | . 84 . Flight 113 | . . 113 Fastest Speed 37 | 50 56 37 Average Speed 97 | 103 102 88 Slowest Speed 190 | 120 120 190 Overloaded Moves . | . . . Propulsion Burnouts . | . . . Robots Hopped 4 | . . 4 Cave-ins Triggered . | . . . Exploration Rate (%) 19 | 6 28 24 Regions Visited 2 Branch Regions . Pre-discovered Areas . | . . . Known Exits Taken . | . . . Unknown Exits Taken 2 | 1 1 . Scrap Searched . | . . . Spaces Dug . | . . . Terrain Destroyed 19 | . . 19 Melee . | . . . Projectile . | . . . AOE 19 | . . 19 Terrain Rammed . | . . . Walls Destroyed . | . . . Machines Disabled . | . . . Actions | -11 -10 -9 --------- Run | Scr Mat Mat Total 892 | 149 397 346 Wait 1 | 1 . . Move 736 | 117 333 286 Hop 4 | . . 4 Pick Up 33 | 12 12 9 Fast Attach . | . . . Attach 14 | 7 3 4 Detach . | . . . Swap 18 | 4 7 7 Drop 21 | . 9 12 Fire 64 | 8 33 23 Melee . | . . . Ram 1 | . . 1 Kick . | . . . Crush . | . . . Escape Stasis . | . . . Rewire . | . . . Trap . | . . . Miscellaneous . | . . . Route ------- -11/Scrapyard -10/Materials -9/Materials History --------- Turn | Location | Event 2 | -11/Scrapyard | Met Revision 17 93 | -11/Scrapyard | Discovered new exit (range 8) 173 | -11/Scrapyard | Entered Materials 317 | -10/Materials | Discovered new exit (range 13) 395 | -10/Materials | Lost 3 parts (1p2n) 639 | -10/Materials | Entered another Materials area 639 | -9/Materials | Evolved 2 slots: Utility x1, Weapon x1 796 | -9/Materials | Destroyed 7 combat bots 974 | -9/Materials | Core integrity fell below 50% 990 | -9/Materials | Core integrity fell below 20% 1000 | -9/Materials | Destroyed by S-10 Pest with Light Assault Rifle Last Messages --------------- Lgt. Armor Plating destroyed. B-36 Bruiser destroyed. K-01 Serf collects debris. Dropped Imp. Flight Unit. Lgt. Assault Rifle destroyed. Dropped Imp. Flight Unit. K-01 Serf collects debris. Sml. Laser destroyed. Dropped Sml. Laser. Dropped Med. Battery. Triggered Alarm Trap. An alarm sounds. ALERT: Alarm triggered, dispatching investigation squad. K-01 Serf destroyed. K-01 Serf collects debris. U-05 Engineer lays Concrete. K-01 Serf collects debris. U-05 Engineer lays Concrete. K-01 Serf collects debris. [Achievement: First Step to Greatness] Map ----- +----------------------------------------------------+ | | | | | | | | | | | ?????????????????????????????????????????????????? | | ?????????????????????????????????????????????????? | | ?????????????????????????????????????????????????? | | ?????????????????????????????????????????????????? | | ?????????????????????????????????????????????????? | | ?????????????????????????????????????????????????? | | ??????????????????????????""?????????????????????? | | ??????????????????????????""?????????????????????? | | ?????????????????????????? ?????????????????????? | | ?????????????????????????#+#??##?????????????????? | | ?????????????????????????# #? ?????????????????? | | ?????????????????????????# #? "??????????????????? | | ?????????????####??#+#?### # ???????????????????? | | ?????????????# ? ?# # ????????????????????? | | ?????????????# # +?????????????????????? | | ?????????????# # #?????????????????????? | | ?????????????# ! + #?????????????????????? | | ?????????????# # #?????????????????????? | | ?????????????# ??# #?????????????????????? | | ?????????????# ????# s#??????#??????????????? | | ?????????????# | ??????# @ #???? #?????????T????? | | ?????????????##????????#![ #?? #????????? ????? | | ???????????????????????#! # """ #????????? ??### | | ???????????????????????#%= + """ #?????????=#?# | | ???????????????????????#k==# """ #????????#%#?# | | ???????????????????????#%*g#?? #????????# #?# | | ???????????#############k #????###????????# #?# | | ????????? u #???????? ####### ### | | ????????? ######### ## | | ????????? w ## | | ??????????############# #?????? ## | | ??????????????????????# !! ########## ## | | ??????????????????????# !! # ##! ## | | ??????????????????????# # " ##== ## * | | ??????????????????????# ==!# "" ##% =##= | | ??????????????????????# """ ==!# "" #= ### | | ??????????????????????# """ =!!# """ # %= | | ??????????????????????# """ # "" + %% | | ??????????????????????# """ # """ # = | | ????????????????????? + """ + """ # ### | | ????????????????????? # # """ ## #### | | ???????????????????? # # " ## #??? | | ???????????????????? ?####### ## ## #??? | | ???????????????????"????????# ########### #??? | | ????????????????????????????# #?????????# ??? | +----------------------------------------------------+ Best States ------------- Heat Dissipation 38 Energy Generation 10 Energy Capacity 275 Matter Stores 400 Matter Capacity 400 Sight Range 16 Terrain Scan Range 14 Terrain Scan Density 10 Armor Coverage 150 Evasion (%) 62 Targeting Accuracy 6 Item Schematics ----------------- None Robot Schematics ------------------ None Fabricated ------------ Nothing Alien Tech Used ----------------- None Achievements -------------- Crack Shot First Step to Greatness Loot Pinata Risk Taker Storm Trooper Uninvited Guest Challenges ------------ None Game ------ Seed TransportPulseNeutralizer Manual? 0 Play Time 00:28:54 Cumulative 0.9 hours Start 2022.03.31 @ 18:27:32 End 2022.03.31 @ 19:01:41 Sessions 2 Manual Loads 0 Difficulty Rogue Special Mode None Game No. 1 Rogue 1 Adventurer 0 Explorer 0 Win Type - Total 0 Types 0/0/0/0/0/0/0/0/0 Lore% 0 Gallery% 1 Achievement% 2 Wizard Run 0 Options --------- ASCII 0 Keyboard 0 Movement Arrows Keybinds 0 Fullscreen 1 Font 18/Smallcaps Map View 76x50 Tactical HUD 0 Map Filters NONE Filters NONE Steam 1 RUN: d286bec9-2295-4f57-94cb-20c3fd1c2211